fUST/lending_fUST_20250211
["ID","MTS","AMOUNT","RATE_DAILY","PERIOD"]
[352726881,1739279451184,-500.0,0.00011369,2]
[352726882,1739279451194,-500.0,0.00011369,2]
[352726883,1739279451204,-611.32,0.00011369,2]
[352726884,1739279451214,-500.0,0.00011369,2]
[352726885,1739279451227,-1114.27,0.00011369,2]
[352726886,1739279451238,-762.61,0.00011369,2]
[352726887,1739279451249,-884.93,0.00011369,2]
[352726888,1739279451259,-500.0,0.00011369,2]
[352726889,1739279451269,-500.0,0.00011369,2]
[352726890,1739279451279,-500.0,0.00011369,2]
[352726891,1739279451289,-500.0,0.00011369,2]
[352726892,1739279451299,-696.76,0.00011369,2]
[352726893,1739279451309,-500.0,0.00011369,2]
[352726894,1739279451319,-667.33,0.00011369,2]
[352726895,1739279451328,-500.0,0.00011369,2]
[352726896,1739279451338,-500.0,0.00011369,2]
[352726897,1739279451348,-500.0,0.00011369,2]
[352726898,1739279451358,-500.0,0.00011369,2]
[352726899,1739279451367,-500.0,0.00011369,2]
[352726900,1739279451377,-500.0,0.00011369,2]
[352726901,1739279451386,-500.0,0.00011369,2]
[352726902,1739279451398,-675.37,0.00011369,2]
[352726903,1739279451409,-500.0,0.00011369,2]
[352726904,1739279451418,-268.45181779,0.00011369,2]
[352726905,1739279451428,-150.12672198,0.00011369,2]
[352726906,1739279451439,-507.64492541,0.00011369,2]
[352726907,1739279451450,-1595.82,0.00011369,2]
[352726908,1739279451459,-500.0,0.00011369,2]
[352726909,1739279451471,-708.4,0.00011369,2]
[352726910,1739279451482,-500.0,0.00011369,2]
[352726911,1739279451491,-500.0,0.00011369,2]
[352726912,1739279451501,-842.32,0.00011369,2]
[352726913,1739279451511,-2296.75,0.00011369,2]
[352726914,1739279451521,-4247.55,0.00011369,2]
[352726915,1739279451531,-500.0,0.00011369,2]
[352726916,1739279451541,-500.0,0.00011369,2]
[352726917,1739279451551,-500.0,0.00011369,2]
[352726918,1739279451560,-905.66,0.00011369,2]
[352726919,1739279451570,-2990.42,0.00011369,2]
[352726920,1739279451580,-500.0,0.00011369,2]
[352726921,1739279451590,-500.0,0.00011369,2]
[352726922,1739279451600,-885.24,0.00011369,2]
[352726923,1739279451610,-1583.44,0.00011369,2]
[352726924,1739279451620,-500.0,0.00011369,2]
[352726925,1739279451630,-1207.48,0.00011369,2]
[352726926,1739279451639,-201.55011702,0.00011369,2]
[352726927,1739279451649,-500.0,0.00011369,2]
[352726928,1739279451659,-32082.67,0.00011369,2]
[352726929,1739279451670,-509.69946105,0.00011369,2]
[352726930,1739279451681,-500.0,0.00011369,2]
[352726931,1739279451691,-587.92,0.00011369,2]
[352726932,1739279451701,-500.0,0.00011369,2]
[352726933,1739279451711,-14521.38,0.00011369,2]
[352726934,1739279451728,-500.0,0.00011369,2]
[352726935,1739279451738,-1696.95,0.00011369,2]
[352726936,1739279451748,-1959.29,0.00011369,2]
[352726937,1739279451758,-500.0,0.00011369,2]
[352726938,1739279451768,-1174.61,0.00011369,2]
[352726939,1739279451778,-628.02,0.00011369,2]
[352726940,1739279451788,-1040.42,0.00011369,2]
[352726941,1739279451798,-1643.53,0.00011369,2]
[352726942,1739279451807,-254.2385407,0.00011369,2]
[352726955,1739280108932,471.97,0.00012,30]
[352726967,1739280452815,1005.72,0.00014031,60]
[352727022,1739280633415,-5000.0,9.345e-05,2]
[352727023,1739280633426,-300.0,9.534e-05,2]
[352727024,1739280633435,-24900.0,9.535e-05,2]
[352727025,1739280633445,-197.42731837,9.899e-05,2]
[352727026,1739280633455,-157.599949,9.999e-05,2]
[352727027,1739280633465,-157.599949,0.00010016,2]
[352727028,1739280633475,-157.599949,0.00010032,2]
[352727029,1739280633487,-157.599949,0.00010049,2]
[352727030,1739280633498,-420.0,0.00010488,2]
[352727031,1739280633507,-400.0,0.00010685,2]
[352727032,1739280633516,-1970.0,0.00010723,2]
[352727033,1739280633526,-538.0,0.00010723,2]
[352727034,1739280633535,-2295.0,0.00010723,2]
[352727035,1739280633545,-7438.69753278,0.00010821,2]
[352727036,1739280633555,-500.0,0.00010957,2]
[352727037,1739280633565,-269.74901465,0.00010957,2]
[352727038,1739280633574,-500.0,0.00010957,2]
[352727039,1739280633584,-500.0,0.00010957,2]
[352727040,1739280633593,-500.0,0.00010957,2]
[352727041,1739280633603,-177.01839919,0.00010957,2]
[352727042,1739280633612,-380.72904546,0.00010957,2]
[352727043,1739280633623,-500.0,0.00010958,2]
[352727044,1739280633634,-500.0,0.00010958,2]
[352727045,1739280633644,-500.0,0.00010958,2]
[352727046,1739280633653,-500.0,0.00010958,2]
[352727047,1739280633663,-500.0,0.00010958,2]
[352727048,1739280633673,-500.0,0.00010958,2]
[352727049,1739280633682,-509.44,0.00010958,2]
[352727050,1739280633692,-500.0,0.00010958,2]
[352727051,1739280633701,-500.0,0.00010958,2]
[352727052,1739280633711,-500.0,0.00010958,2]
[352727053,1739280633720,-500.0,0.00010958,2]
[352727054,1739280633730,-500.0,0.00010958,2]
[352727055,1739280633740,-500.0,0.00010958,2]
[352727056,1739280633749,-500.0,0.00010958,2]
[352727057,1739280633759,-500.0,0.00010958,2]
[352727058,1739280633769,-500.0,0.00010958,2]
[352727059,1739280633779,-500.0,0.00010958,2]
[352727060,1739280633788,-500.0,0.00010958,2]
[352727061,1739280633798,-275.85750841,0.00010958,2]
[352727062,1739280633808,-500.0,0.00010958,2]
[352727063,1739280633819,-500.0,0.00010958,2]
[352727064,1739280633830,-500.0,0.00010958,2]
[352727065,1739280633840,-500.0,0.00010958,2]
[352727066,1739280633850,-866.04,0.00010958,2]
[352727067,1739280633861,-500.0,0.00010958,2]
[352727068,1739280633871,-879.63,0.00010958,2]
[352727069,1739280633880,-573.09,0.00010958,2]
[352727070,1739280633890,-500.0,0.00010958,2]
[352727071,1739280633901,-710.23,0.00010958,2]
[352727072,1739280633911,-532.85,0.00010958,2]
[352727073,1739280633920,-500.0,0.00010958,2]
[352727074,1739280633930,-593.82796365,0.00010958,2]
[352727075,1739280633940,-500.0,0.00010958,2]
[352727076,1739280633950,-500.0,0.00010958,2]
[352727077,1739280633960,-500.0,0.00010958,2]
[352727078,1739280633969,-500.0,0.00010958,2]
[352727079,1739280633980,-500.0,0.00010958,2]
[352727080,1739280633990,-500.0,0.00010958,2]
[352727081,1739280633999,-500.0,0.00010958,2]
[352727082,1739280634009,-500.0,0.00010958,2]
[352727083,1739280634018,-928.55,0.00010958,2]
[352727084,1739280634029,-500.0,0.00010958,2]
[352727085,1739280634039,-500.0,0.00010958,2]
[352727086,1739280634048,-500.0,0.00010958,2]
[352727087,1739280634058,-500.0,0.00010958,2]
[352727088,1739280634067,-500.0,0.00010958,2]
[352727089,1739280634077,-737.45,0.00010958,2]
[352727090,1739280634088,-500.0,0.00010958,2]
[352727091,1739280634097,-123.96467287,0.00010958,2]
[352727092,1739280634110,-376.03532713,0.00010958,2]
[352727093,1739280634120,-500.0,0.00010958,2]
[352727094,1739280634129,-500.0,0.00010958,2]
[352727095,1739280634139,-500.0,0.00010958,2]
[352727096,1739280634148,-500.0,0.00010958,2]
[352727097,1739280634158,-580.63,0.00010958,2]
[352727098,1739280634168,-1431.6,0.00010958,2]
[352727099,1739280634178,-500.0,0.00010958,2]
[352727100,1739280634187,-635.51,0.00010958,2]
[352727101,1739280634197,-604.05,0.00010958,2]
[352727102,1739280634208,-556.1,0.00010958,2]
[352727103,1739280634218,-500.0,0.00010958,2]
[352727104,1739280634229,-1914.01,0.00010958,2]
[352727105,1739280634238,-506.68625905,0.00010958,2]
[352727106,1739280634248,-1329.85,0.00010958,2]
[352727107,1739280634258,-500.0,0.00010958,2]
[352727108,1739280634267,-500.0,0.00010958,2]
[352727109,1739280634277,-701.93,0.00010958,2]
[352727110,1739280634286,-3813.5,0.00010958,2]
[352727111,1739280634296,-500.0,0.00010958,2]
[352727112,1739280634305,-522.30203272,0.00010958,2]
[352727113,1739280634315,-344.55309353,0.00010958,2]
[352727146,1739280638650,-150.0,0.00010723,2]
[352727148,1739280638660,-155.44690647,0.00010958,2]
[352727151,1739280638669,-85.07309353,0.00010958,2]
[352727161,1739280638765,-8139.27690647,0.00010958,2]
[352727164,1739280638775,-500.0,0.00010958,2]
[352727166,1739280638785,-1368.58,0.00010958,2]
[352727169,1739280638794,-500.0,0.00010958,2]
[352727172,1739280638803,-500.0,0.00010958,2]
[352727174,1739280638814,-500.0,0.00010958,2]
[352727175,1739280638827,-590.34,0.00010958,2]
[352727177,1739280638837,-500.0,0.00010958,2]
[352727179,1739280638846,-811.09,0.00010958,2]
[352727181,1739280638856,-500.0,0.00010958,2]
[352727183,1739280638867,-562.81,0.00010958,2]
[352727185,1739280638876,-500.0,0.00010958,2]
[352727187,1739280638886,-500.0,0.00010958,2]
[352727189,1739280638897,-1913.95,0.00010958,2]
[352727191,1739280638906,-500.0,0.00010958,2]
[352727193,1739280638916,-2337.39446263,0.00010958,2]
[352727196,1739280638928,-154.61553737,0.00010958,2]
[352727198,1739280638938,-500.0,0.00010958,2]
[352727200,1739280638947,-500.0,0.00010958,2]
[352727202,1739280638957,-1319.53,0.00010958,2]
[352727204,1739280638966,-754.72,0.00010958,2]
[352727206,1739280638975,-500.0,0.00010958,2]
[352727207,1739280638988,-523.35,0.00010958,2]
[352727210,1739280638997,-3392.13,0.00010958,2]
[352727211,1739280639006,-1006.23,0.00010958,2]
[352727213,1739280639016,-500.0,0.00010958,2]
[352727216,1739280639025,-500.0,0.00010958,2]
[352727217,1739280639035,-500.0,0.00010958,2]
[352727219,1739280639044,-500.0,0.00010958,2]
[352727221,1739280639054,-500.0,0.00010958,2]
[352727223,1739280639063,-500.0,0.00010958,2]
[352727225,1739280639072,-737.7,0.00010958,2]
[352727227,1739280639083,-26735.56,0.00010958,2]
[352727229,1739280639092,-500.0,0.00010958,2]
[352727231,1739280639102,-500.0,0.00010958,2]
[352727234,1739280639111,-978.84,0.00010958,2]
[352727235,1739280639121,-500.0,0.00010958,2]
[352727237,1739280639131,-719.57,0.00010958,2]
[352727239,1739280639140,-1414.13,0.00010958,2]
[352727241,1739280639150,-523.46,0.00010958,2]
[352727243,1739280639159,-1369.61,0.00010958,2]
[352727245,1739280639168,-867.02,0.00010958,2]
[352727247,1739280639178,-500.0,0.00010958,2]
[352727249,1739280639187,-500.0,0.00010958,2]
[352727251,1739280639197,-675.5,0.00010958,2]
[352727253,1739280639206,-12101.15,0.00010958,2]
[352727255,1739280639216,-500.0,0.00010958,2]
[352727258,1739280639225,-500.0,0.00010958,2]
[352727260,1739280639237,-500.0,0.00010958,2]
[352727262,1739280639247,-633.32,0.00010958,2]
[352727264,1739280639258,-558.49,0.00010958,2]
[352727266,1739280639267,-2500.49,0.00010958,2]
[352727268,1739280639277,-500.0,0.00010958,2]
[352727270,1739280639287,-500.0,0.00010958,2]
[352727271,1739280639296,-1632.74,0.00010958,2]
[352727274,1739280639306,-500.0,0.00010958,2]
[352727276,1739280639315,-1223.36,0.00010958,2]
[352727277,1739280639325,-500.0,0.00010958,2]
[352727280,1739280639334,-500.0,0.00010958,2]
[352727281,1739280639344,-4448.17,0.00010958,2]
[352727284,1739280639355,-500.0,0.00010958,2]
[352727286,1739280639365,-1872.4,0.00010958,2]
[352727288,1739280639374,-500.0,0.00010958,2]
[352727290,1739280639383,-500.0,0.00010958,2]
[352727291,1739280639392,-724.85,0.00010958,2]
[352727294,1739280639402,-597.78,0.00010958,2]
[352727296,1739280639413,-673.0,0.00010958,2]
[352727298,1739280639422,-1031.62,0.00010958,2]
[352727300,1739280639431,-1067.54,0.00010958,2]
[352727302,1739280639440,-500.0,0.00010958,2]
[352727304,1739280639449,-500.0,0.00010958,2]
[352727306,1739280639464,-500.0,0.00010958,2]
[352727308,1739280639474,-2231.78,0.00010958,2]
[352727310,1739280639485,-1173.47,0.00010958,2]
[352727312,1739280639494,-500.0,0.00010958,2]
[352727314,1739280639503,-673.37,0.00010958,2]
[352727316,1739280639513,-500.0,0.00010958,2]
[352727318,1739280639522,-543.9,0.00010958,2]
[352727320,1739280639531,-500.0,0.00010958,2]
[352727322,1739280639541,-500.0,0.00010958,2]
[352727324,1739280639550,-693.85,0.00010958,2]
[352727326,1739280639560,-500.0,0.00010958,2]
[352727328,1739280639569,-500.0,0.00010958,2]
[352727330,1739280639579,-500.0,0.00010958,2]
[352727332,1739280639588,-500.0,0.00010958,2]
[352727334,1739280639597,-168.2461105,0.00010959,2]
[352727336,1739280639607,-188.71,0.00010959,2]
[352727338,1739280639615,-157.26,0.00010959,2]
[352727340,1739280639625,-17463.8075733,0.00010959,2]
[352727475,1739280640852,-366.0670543,0.00010958,2]
[352727478,1739280640871,-133.9329457,0.00010958,2]
[352727480,1739280640881,-786.3,0.00010959,2]
[352727482,1739280640890,-1004.76003928,0.00010959,2]
[352727792,1739280643861,-500.0,0.00010958,2]
[352727817,1739280643870,-500.0,0.00010958,2]
[352727819,1739280644017,-469.97380484,0.00010959,2]
[352728106,1739280646754,-500.0,0.00010958,2]
[352728108,1739280646764,-500.0,0.00010958,2]
[352728110,1739280646774,-20.40321746,0.00010959,2]
[352728115,1739280646809,-4930.35,0.00010959,2]
[352730840,1739280847216,1000.0,0.00016,120]
[352730841,1739280921615,6516.77175944,0.0001312,28]
[352730905,1739281832023,-519.52250541,8.971e-05,2]
[352730907,1739281832035,-101.69255005,8.971e-05,2]
[352730909,1739281832045,-304.27016536,9.339e-05,2]
[352730911,1739281832054,-27.89647499,9.751e-05,2]
[352730913,1739281832066,-272.10352501,9.751e-05,2]
[352730915,1739281832075,-546.0999678,9.752e-05,2]
[352730916,1739281832095,-910.30236845,9.752e-05,2]
[352730998,1739281837736,-23443.59766375,9.752e-05,2]
[352730999,1739281837745,-5988.53784477,0.00010101,2]
[352731000,1739281837755,-2300.0,0.00010102,2]
[352731001,1739281837767,-400.0,0.00010685,2]
[352731002,1739281837778,-420.0,0.00010726,2]
[352731003,1739281837787,-349.07655093,0.000109,2]
[352731004,1739281837797,-671.0,0.000109,3]
[352731005,1739281837807,-229.6772179,0.00010957,2]
[352731007,1739281837816,-179.58268427,0.00010957,2]
[352731009,1739281837826,-500.0,0.00010957,2]
[352731010,1739281837846,-500.0,0.00010957,2]
[352731011,1739281837856,-461.6275387,0.00010957,2]
[352731012,1739281837865,-500.0,0.00010958,2]
[352731013,1739281837875,-500.0,0.00010958,2]
[352731014,1739281837885,-500.0,0.00010958,2]
[352731015,1739281837894,-500.0,0.00010958,2]
[352731017,1739281837903,-500.0,0.00010958,2]
[352731019,1739281837913,-500.0,0.00010958,2]
[352731020,1739281837922,-500.0,0.00010958,2]
[352731021,1739281837932,-500.0,0.00010958,2]
[352731022,1739281837942,-500.0,0.00010958,2]
[352731023,1739281837951,-500.0,0.00010958,2]
[352731024,1739281837961,-500.0,0.00010958,2]
[352731025,1739281837970,-500.0,0.00010958,2]
[352731026,1739281837979,-500.0,0.00010958,2]
[352731027,1739281837988,-500.0,0.00010958,2]
[352731028,1739281837997,-500.0,0.00010958,2]
[352731029,1739281838007,-500.0,0.00010958,2]
[352731030,1739281838020,-500.0,0.00010958,2]
[352731031,1739281838030,-500.0,0.00010958,2]
[352731032,1739281838039,-500.0,0.00010958,2]
[352731033,1739281838050,-500.0,0.00010958,2]
[352731034,1739281838060,-500.0,0.00010958,2]
[352731035,1739281838070,-500.0,0.00010958,2]
[352731036,1739281838080,-500.0,0.00010958,2]
[352731037,1739281838090,-500.0,0.00010958,2]
[352731038,1739281838100,-500.0,0.00010958,2]
[352731039,1739281838109,-500.0,0.00010958,2]
[352731040,1739281838118,-549.21,0.00010958,2]
[352731041,1739281838127,-829.96,0.00010958,2]
[352731042,1739281838137,-842.97,0.00010958,2]
[352731043,1739281838151,-680.64,0.00010958,2]
[352731044,1739281838160,-510.65,0.00010958,2]
[352731045,1739281838170,-500.0,0.00010958,2]
[352731046,1739281838180,-500.0,0.00010958,2]
[352731047,1739281838189,-500.0,0.00010958,2]
[352731048,1739281838198,-500.0,0.00010958,2]
[352731049,1739281838208,-500.0,0.00010958,2]
[352731050,1739281838218,-500.0,0.00010958,2]
[352731051,1739281838230,-500.0,0.00010958,2]
[352731052,1739281838239,-500.0,0.00010958,2]
[352731053,1739281838249,-500.0,0.00010958,2]
[352731054,1739281838258,-889.87,0.00010958,2]
[352731055,1739281838270,-328.01866496,0.00010958,2]
[352731056,1739281838280,-706.72,0.00010958,2]
[352731057,1739281838289,-500.0,0.00010958,2]
[352731058,1739281838298,-500.0,0.00010958,2]
[352731059,1739281838308,-500.0,0.00010958,2]
[352731060,1739281838319,-988.63,0.00010958,2]
[352731061,1739281838328,-609.03,0.00010958,2]
[352731062,1739281838338,-500.0,0.00010958,2]
[352731063,1739281838347,-604.51791726,0.00010958,2]
[352731064,1739281838357,-500.0,0.00010958,2]
[352731065,1739281838517,-2138.79,0.00010958,2]
[352731066,1739281838526,-556.44,0.00010958,2]
[352731067,1739281838536,-521.24,0.00010958,2]
[352731068,1739281838545,-500.0,0.00010958,2]
[352731069,1739281838554,-1875.09,0.00010958,2]
[352731070,1739281838564,-500.0,0.00010958,2]
[352731071,1739281838573,-500.0,0.00010958,2]
[352731072,1739281838583,-394.52886916,0.00010958,2]
[352731073,1739281838593,-500.0,0.00010958,2]
[352731074,1739281838602,-1834.26,0.00010958,2]
[352731075,1739281838612,-532.93,0.00010958,2]
[352731076,1739281838621,-500.0,0.00010958,2]
[352731077,1739281838631,-3654.6,0.00010958,2]
[352731078,1739281838639,-7881.67,0.00010958,2]
[352731079,1739281838650,-500.0,0.00010958,2]
[352731080,1739281838659,-500.0,0.00010958,2]
[352731081,1739281838669,-672.68,0.00010958,2]
[352731082,1739281838678,-500.0,0.00010958,2]
[352731083,1739281838688,-1274.44,0.00010958,2]
[352731084,1739281838698,-500.0,0.00010958,2]
[352731085,1739281838707,-712.51,0.00010958,2]
[352731086,1739281838717,-500.0,0.00010958,2]
[352731087,1739281838727,-565.74,0.00010958,2]
[352731088,1739281838736,-500.0,0.00010958,2]
[352731089,1739281838746,-500.0,0.00010958,2]
[352731090,1739281838756,-500.0,0.00010958,2]
[352731091,1739281838768,-3398.28,0.00010958,2]
[352731092,1739281838777,-1834.21,0.00010958,2]
[352731093,1739281838787,-723.27,0.00010958,2]
[352731094,1739281838796,-539.36,0.00010958,2]
[352731095,1739281838805,-500.0,0.00010958,2]
[352731096,1739281838815,-500.0,0.00010958,2]
[352731097,1739281838824,-2388.18,0.00010958,2]
[352731098,1739281838834,-500.0,0.00010958,2]
[352731099,1739281838854,-500.0,0.00010958,2]
[352731100,1739281838864,-25621.58,0.00010958,2]
[352731101,1739281838873,-1264.55,0.00010958,2]
[352731102,1739281838883,-964.31,0.00010958,2]
[352731103,1739281838892,-501.55,0.00010958,2]
[352731104,1739281838902,-500.0,0.00010958,2]
[352731105,1739281838911,-500.0,0.00010958,2]
[352731106,1739281838920,-500.0,0.00010958,2]
[352731107,1739281838930,-500.0,0.00010958,2]
[352731108,1739281838939,-1355.2,0.00010958,2]
[352731109,1739281838949,-500.0,0.00010958,2]
[352731110,1739281838958,-500.0,0.00010958,2]
[352731111,1739281838967,-706.96,0.00010958,2]
[352731112,1739281838976,-500.0,0.00010958,2]
[352731113,1739281838986,-500.0,0.00010958,2]
[352731114,1739281838995,-500.0,0.00010958,2]
[352731115,1739281839005,-830.89,0.00010958,2]
[352731116,1739281839017,-500.0,0.00010958,2]
[352731117,1739281839026,-647.36,0.00010958,2]
[352731118,1739281839035,-938.05,0.00010958,2]
[352731119,1739281839043,-500.0,0.00010958,2]
[352731120,1739281839053,-500.0,0.00010958,2]
[352731121,1739281839062,-535.22,0.00010958,2]
[352731122,1739281839071,-11596.94,0.00010958,2]
[352731123,1739281839081,-1312.54,0.00010958,2]
[352731124,1739281839090,-500.0,0.00010958,2]
[352731125,1739281839099,-689.59,0.00010958,2]
[352731126,1739281839108,-606.93,0.00010958,2]
[352731127,1739281839117,-1794.38,0.00010958,2]
[352731128,1739281839127,-2396.3,0.00010958,2]
[352731129,1739281839136,-1564.71,0.00010958,2]
[352731130,1739281839145,-501.65,0.00010958,2]
[352731131,1739281839155,-500.0,0.00010958,2]
[352731132,1739281839164,-500.0,0.00010958,2]
[352731133,1739281839173,-500.0,0.00010958,2]
[352731134,1739281839183,-1023.06,0.00010958,2]
[352731135,1739281839192,-500.0,0.00010958,2]
[352731136,1739281839201,-1172.38,0.00010958,2]
[352731138,1739281839211,-500.0,0.00010958,2]
[352731139,1739281839221,-500.0,0.00010958,2]
[352731140,1739281839230,-500.0,0.00010958,2]
[352731141,1739281839239,-500.0,0.00010958,2]
[352731142,1739281839252,-1124.58,0.00010958,2]
[352731143,1739281839261,-500.0,0.00010958,2]
[352731144,1739281839272,-500.0,0.00010958,2]
[352731145,1739281839282,-500.0,0.00010958,2]
[352731146,1739281839292,-500.0,0.00010958,2]
[352731147,1739281839301,-572.87,0.00010958,2]
[352731148,1739281839310,-664.94,0.00010958,2]
[352731149,1739281839320,-500.0,0.00010958,2]
[352731150,1739281839329,-644.95,0.00010958,2]
[352731151,1739281839339,-500.0,0.00010958,2]
[352731152,1739281839348,-500.0,0.00010958,2]
[352731154,1739281839358,-2841.88,0.00010958,2]
[352731156,1739281839367,-500.0,0.00010958,2]
[352731158,1739281839376,-500.0,0.00010958,2]
[352731161,1739281839385,-1371.95,0.00010958,2]
[352731164,1739281839394,-500.0,0.00010958,2]
[352731166,1739281839403,-500.0,0.00010958,2]
[352731168,1739281839413,-694.65,0.00010958,2]
[352731170,1739281839422,-645.31,0.00010958,2]
[352731172,1739281839432,-578.88,0.00010958,2]
[352731174,1739281839441,-500.0,0.00010958,2]
[352731176,1739281839451,-41684.43164649,0.00010959,2]
[352731177,1739281839460,-1000.0,0.0001096,2]
[352731179,1739281839470,-150.0,0.00010971,2]
[352731180,1739281839479,-538.0,0.00010971,2]
[352731181,1739281839489,-1970.0,0.00010971,2]
[352731182,1739281839499,-586.123,0.00010971,2]
[352731184,1739281839508,-396.0,0.00010971,2]
[352731186,1739281839520,-89.14105979,0.00011,2]
[352731192,1739281839658,-1034.1720331,0.00011,2]
[352731193,1739281839671,-1876.68690711,0.00011,2]
[352731194,1739281839681,-449.509,0.0001108,2]
[352731195,1739281839691,-500.0,0.0001108,2]
[352731196,1739281839700,-238.91230285,0.0001108,2]
[352731197,1739281839710,-1159.80400214,0.0001108,5]
[352731198,1739281839728,-4931.77824009,0.0001108,5]
[352731199,1739281839739,-500.0,0.0001108,5]
[352731200,1739281839756,-9435.71028066,0.0001108,5]
[352731201,1739281839771,-656.53893869,0.0001108,5]
[352731202,1739281839783,-42575.55423862,0.0001108,5]
[352731203,1739281839793,-80108.0648841,0.00011081,5]
[352731204,1739281839805,-50603.66622113,0.00011081,5]
[352731236,1739281842644,-1546.78600054,0.00011081,5]
[352731238,1739281842656,-4910.92031945,0.00011081,5]
[352731597,1739281845893,-1757.83,0.00010958,2]
[352731599,1739281845903,-264.38268904,0.00011081,5]
[352731601,1739281845915,-1333.00000002,0.00011081,5]
[352732592,1739283032272,-791.06408051,9.16e-05,2]
[352732594,1739283032285,-3940.7596226,9.253e-05,2]
[352732596,1739283032294,-1005.2217365,9.749e-05,2]
[352732597,1739283032303,-359.68340838,9.901e-05,2]
[352732600,1739283032315,-2274.35422763,9.901e-05,2]
[352732602,1739283032324,-300.0,0.00010025,2]
[352732604,1739283032334,-1114.82896237,0.00010026,2]
[352732606,1739283032345,-3910.54,0.00010026,2]
[352732612,1739283032393,-19874.63103763,0.00010026,2]
[352732614,1739283032403,-2000.2274285,0.00010026,2]
[352732616,1739283032412,-2300.0,0.00010102,2]
[352732618,1739283032422,-533.51018589,0.00010858,2]
[352732619,1739283032431,-638.0,0.000109,3]
[352732620,1739283032440,-533.51018589,0.00010927,2]
[352732622,1739283032449,-500.0,0.00010958,2]
[352732623,1739283032458,-552.83954178,0.00010958,2]
[352732624,1739283032467,-500.0,0.00010958,2]
[352732625,1739283032476,-500.0,0.00010958,2]
[352732628,1739283032486,-500.0,0.00010958,2]
[352732630,1739283032495,-500.0,0.00010958,2]
[352732632,1739283032504,-500.0,0.00010958,2]
[352732634,1739283032514,-618.08,0.00010958,2]
[352732636,1739283032523,-500.0,0.00010958,2]
[352732637,1739283032535,-500.0,0.00010958,2]
[352732639,1739283032545,-500.0,0.00010958,2]
[352732641,1739283032553,-500.0,0.00010958,2]
[352732642,1739283032563,-500.0,0.00010958,2]
[352732643,1739283032572,-500.0,0.00010958,2]
[352732644,1739283032581,-500.0,0.00010958,2]
[352732645,1739283032590,-500.0,0.00010958,2]
[352732646,1739283032601,-500.0,0.00010958,2]
[352732647,1739283032612,-500.0,0.00010958,2]
[352732648,1739283032621,-549.99676208,0.00010958,2]
[352732649,1739283032630,-500.0,0.00010958,2]
[352732650,1739283032640,-500.0,0.00010958,2]
[352732651,1739283032650,-500.0,0.00010958,2]
[352732652,1739283032659,-487.12821838,0.00010958,2]
[352732653,1739283032668,-500.0,0.00010958,2]
[352732654,1739283032678,-500.0,0.00010958,2]
[352732655,1739283032689,-500.0,0.00010958,2]
[352732656,1739283032698,-554.98,0.00010958,2]
[352732657,1739283032707,-285.94805604,0.00010958,2]
[352732670,1739283038395,-214.05194396,0.00010958,2]
[352732671,1739283038409,-838.68,0.00010958,2]
[352732672,1739283038419,-189.73377037,0.00010958,2]
[352732673,1739283038430,-310.26622963,0.00010958,2]